bitfinex/quotes_ETHUSD_20250406
["timestamp","ask_amount","ask_price","bid_price","bid_amount"]
[1743963698305,3.0,1627.7,1625.2,4.30696]
[1743963698531,3.0,1627.7,1625.3,0.430696]
[1743963698532,0.55,1627.4,1625.3,0.430696]
[1743963698836,15.07999941,1628.8,1625.6,10.78214941]
[1743963699002,3.0,1628.1,1625.6,10.78214941]
[1743963699205,11.33214941,1627.8,1625.1,44.236]
[1743963699443,0.55,1626.4,1623.8,42.92239046]
[1743963699633,0.0413,1625.8,1623.5,10.78214941]
[1743963699843,0.0413,1624.2,1622.2,3.0247534]
[1743963700002,3.55,1624.1,1622.6,4.3138]
[1743963700219,0.355,1624.0,1622.1,0.06164]
[1743963700416,0.0413,1624.2,1623.0,4.31282]
[1743963700737,4.31189,1623.5,1622.1,0.06164]
[1743963700940,3.0,1623.4,1622.1,0.06164]
[1743963701120,4.31356,1622.8,1622.1,0.06164]
[1743963701320,0.431356,1622.7,1622.1,0.06164]
[1743963701663,0.0413,1623.2,1622.1,0.06164]
[1743963701817,0.0413,1623.2,1622.5,4.28332]
[1743963702018,0.0413,1623.2,1622.3,4.31465]
[1743963702019,0.0413,1624.0,1622.3,4.31486]
[1743963702219,1.849021,1624.7,1622.3,4.31486]
[1743963702220,4.30622,1625.6,1623.7,4.31113]
[1743963702424,0.0413,1625.5,1623.7,4.31113]
[1743963702759,4.30673,1625.4,1623.5,0.55]
[1743963702962,0.476052,1625.5,1622.5,4.31412]
[1743963703259,0.476052,1625.5,1623.0,10.78214941]
[1743963703476,4.31115,1623.7,1622.1,0.06164]
[1743963703758,0.472415,1623.6,1622.7,4.31371]
[1743963703919,47.282,1624.7,1622.3,10.78214941]
[1743963704114,0.0413,1624.6,1621.8,15.09821941]
[1743963704362,0.55,1623.8,1621.8,4.31598]
[1743963704518,0.0413,1624.0,1622.4,10.78214941]
[1743963704715,0.0413,1624.9,1623.1,0.55]
[1743963704930,0.0413,1625.8,1624.0,4.31034]
[1743963705142,0.0413,1625.8,1623.1,1.13321494]
[1743963705449,0.0413,1625.8,1622.3,4.31485]
[1743963705450,4.30678,1625.4,1622.3,1.6226]
[1743963705768,0.0413,1624.5,1622.3,1.6226]
[1743963706061,4.86027,1624.1,1622.3,4.31471]
[1743963706260,0.0413,1624.2,1622.0,4.31565]
[1743963706461,0.0413,1624.2,1622.4,4.31459]
[1743963706632,0.0413,1624.2,1623.2,4.3122]
[1743963706817,0.0413,1624.2,1623.3,4.31204]
[1743963707020,0.55279465,1624.4,1624.1,4.30981]
[1743963707232,0.0413,1625.9,1624.7,4.30829]
[1743963707432,0.0413,1625.9,1624.4,4.30925]
[1743963707720,0.0413,1626.5,1625.1,4.30723]
[1743963707954,0.0413,1626.5,1623.6,4.3113]
[1743963708272,0.0413,1625.6,1623.5,3.0]
[1743963708419,0.7255643,1626.4,1624.2,3.0]
[1743963708420,0.0413,1626.2,1624.2,3.0]
[1743963708619,0.55351896,1626.1,1624.2,3.0]
[1743963708819,0.55351896,1626.1,1624.1,10.78214941]
[1743963709024,0.55351896,1626.1,1624.0,10.78214941]
[1743963709319,0.0413,1625.6,1623.4,1.6226]
[1743963709533,0.55,1625.5,1623.4,1.6226]
[1743963709732,0.55,1625.5,1623.5,4.31167]
[1743963709957,0.5,1625.5,1624.0,4.31032]
[1743963710157,0.55351896,1625.4,1624.1,4.31005]
[1743963710363,0.49894812,1625.4,1625.3,4.30689]
[1743963710664,0.0413,1626.2,1625.5,4.30634]
[1743963710819,0.0413,1627.0,1625.3,10.78214941]
[1743963711015,0.0413,1627.0,1625.1,4.30723]
[1743963711016,4.30282,1626.9,1625.1,4.30723]
[1743963711220,0.0413,1626.1,1624.3,10.78214941]
[1743963711559,0.0413,1626.0,1623.3,4.3122]
[1743963711766,3.0,1625.5,1623.5,15.09380941]
[1743963711917,4.30743,1625.1,1623.2,1.6226]
[1743963712253,3.55,1625.7,1624.1,4.31003]
[1743963712254,0.0413,1625.0,1624.1,4.31003]
[1743963712463,0.0413,1625.0,1624.6,4.30873]
[1743963712630,0.434581,1626.1,1625.1,4.30728]
[1743963712631,0.0413,1625.8,1625.1,4.30728]
[1743963712823,0.0413,1625.8,1625.3,4.30675]
[1743963713023,0.0413,1626.5,1625.3,0.55]
[1743963713223,44.6123642,1627.3,1625.3,0.55]
[1743963713224,0.0413,1627.3,1625.3,11.33214941]
[1743963713558,0.0413,1627.3,1625.5,4.30636]
[1743963713742,0.0413,1627.3,1625.9,4.30521]
[1743963714056,0.0413,1627.1,1624.6,1.5035]
[1743963714244,0.0413,1626.1,1624.4,10.78214941]
[1743963714452,0.0413,1626.1,1624.8,4.30801]
[1743963714740,0.0413,1626.1,1625.1,4.30718]
[1743963714942,15.08253941,1627.8,1624.6,3.0]
[1743963714943,0.0413,1626.9,1625.4,0.55]
[1743963715163,0.0413,1626.9,1626.3,4.30423]
[1743963715347,0.0413,1626.9,1626.4,0.06147109]
[1743963715554,0.0413,1626.9,1625.9,4.30516]
[1743963715555,0.0413,1627.9,1626.8,4.30289]
[1743963715778,0.0413,1627.9,1626.3,7.30424]
[1743963715958,0.0413,1627.9,1626.4,12.28564941]
[1743963716156,0.0413,1627.9,1626.8,4.30274]
[1743963716349,0.31906966,1628.7,1627.5,4.30084]
[1743963716577,0.0413,1628.6,1627.3,4.3016]
[1743963716776,0.0413,1629.6,1628.3,4.29875]
[1743963716978,0.0413,1629.6,1628.3,4.29896]
[1743963717184,5.77727743,1629.7,1629.1,4.2968]
[1743963717385,0.0413,1630.2,1629.5,4.29553]
[1743963717679,0.0413,1630.2,1629.6,4.2953]
[1743963717840,5.77727743,1630.7,1629.6,4.2953]
[1743963718180,5.77727743,1630.7,1628.3,44.265]
[1743963718472,5.77727743,1630.7,1630.1,4.29417]
[1743963718642,5.77727743,1630.7,1629.4,44.265]
[1743963718841,5.77727743,1630.7,1629.5,7.84576]
[1743963719181,5.70369738,1630.7,1629.9,0.55]
[1743963719478,0.31870498,1631.8,1630.6,4.29268]
[1743963719675,0.31870498,1631.8,1630.7,0.06129131]
[1743963719860,4.2879,1632.5,1630.7,0.06129131]
[1743963720068,4.28842,1632.4,1630.6,4.29288]
[1743963720264,4.28842,1632.3,1630.4,44.265]
[1743963720446,0.428842,1632.3,1630.6,4.29273]
[1743963720639,0.428842,1632.3,1630.8,0.55]
[1743963720844,0.31842798,1632.4,1631.1,0.55]
[1743963721046,0.31842798,1632.4,1631.3,0.55]
[1743963721259,0.31842798,1632.4,1631.6,0.55]
[1743963721459,0.31842798,1632.4,1631.7,4.29]
[1743963721660,0.31842798,1632.4,1631.8,0.06125422]
[1743963721864,44.227,1633.7,1631.8,3.55]
[1743963722070,0.31824526,1634.2,1631.8,3.55]
[1743963722282,4.2839,1634.1,1631.8,3.0]
[1743963722579,4.28353,1634.2,1632.3,4.28825]
[1743963722802,4.28259,1634.6,1632.6,0.55]
[1743963723092,11.85981321,1634.5,1632.4,3.55]
[1743963723281,11.54175979,1634.5,1633.4,4.28538]
[1743963723483,11.54175979,1634.5,1634.1,4.28344]
[1743963723484,11.11350779,1634.5,1634.1,4.28344]
[1743963723790,0.55,1635.3,1634.2,0.06117418]
[1743963723957,4.2811,1635.1,1633.3,4.28562]
[1743963724157,4.28108,1635.1,1632.7,12.30064941]
[1743963724370,4.709658,1635.0,1633.0,0.55]
[1743963724698,3.15650779,1635.0,1633.8,3.55]
[1743963725004,0.55,1635.3,1635.1,4.28087]
[1743963725157,0.3178127,1636.3,1635.2,0.06114233]
[1743963725354,0.3178127,1636.3,1634.3,4.28292]
[1743963725355,0.06114233,1636.2,1633.3,1.5185]
[1743963725680,0.06114233,1636.2,1634.3,4.28317]
[1743963725863,0.06114233,1636.7,1635.3,4.28049]
[1743963726064,3.0,1636.5,1634.9,4.28156]
[1743963726277,0.06114233,1636.4,1634.7,4.28213]
[1743963726475,0.06114233,1636.8,1635.0,0.55]
[1743963726678,0.06114233,1636.8,1635.3,4.28056]
[1743963726877,0.06114233,1636.8,1635.4,7.28027]
[1743963727078,4.27633,1637.0,1635.5,0.06111402]
[1743963727361,49.36220069,1637.6,1635.6,0.55]
[1743963727362,0.06114233,1637.3,1635.6,0.55]
[1743963727568,44.135,1637.6,1636.4,4.27745]
[1743963727775,0.31762822,1638.5,1636.4,3.0]
[1743963728067,0.95244852,1638.6,1637.1,4.27578]
[1743963728280,0.95244852,1638.6,1637.6,4.27453]
[1743963728481,0.95244852,1638.6,1637.8,4.27388]
[1743963728682,0.31742081,1639.4,1638.1,4.27306]
[1743963728992,0.95139349,1639.2,1637.9,7.27376]
[1743963729194,18.09586601,1640.3,1638.4,3.0]
[1743963729398,18.09586601,1640.3,1639.0,3.0]
[1743963729561,0.95091908,1641.8,1639.5,3.0]
[1743963729895,3.35509044,1640.8,1640.0,4.26826]
[1743963730104,3.35509044,1640.8,1639.5,4.26943]
[1743963730393,3.35509044,1640.8,1639.5,4.834578]
[1743963730596,3.35509044,1640.8,1639.1,3.0]
[1743963730759,3.35509044,1640.8,1639.5,0.55]
[1743963730960,3.35509044,1640.8,1638.9,10.78214941]
[1743963731173,3.35509044,1640.8,1639.9,3.0]
[1743963731462,0.31381816,1641.9,1640.7,3.0]
[1743963731793,0.31674372,1642.0,1640.9,14.94003634]
[1743963732000,54.14127134,1643.1,1640.9,10.67427634]
[1743963732303,10.06527134,1643.1,1642.0,4.26293]
[1743963732609,10.06527134,1643.1,1641.5,7.26434]
[1743963732902,10.06527134,1643.1,1641.2,1.5185]
[1743963732903,10.06527134,1643.1,1641.8,7.26361]
[1743963733100,10.06527134,1643.1,1642.6,4.26137]
[1743963733399,10.06527134,1643.1,1641.9,47.011]
[1743963733557,10.06527134,1643.1,1642.4,4.26201]
[1743963733757,0.31622109,1644.3,1642.6,0.55]
[1743963733996,44.011,1644.7,1642.0,4.7011]
[1743963733997,4.25815,1644.0,1642.0,8.96398]
[1743963734202,48.26715,1644.7,1642.6,8.52276]
[1743963734363,4.25847,1643.8,1642.1,10.67427634]
[1743963734564,44.011,1644.7,1642.7,4.26112]
[1743963734757,9.98,1645.0,1643.0,4.2604]
[1743963735099,10.25303,1645.9,1643.0,4.2604]
[1743963735100,0.31581045,1644.6,1643.1,11.22427634]
[1743963735312,9.98,1645.3,1643.3,4.25972]
[1743963735477,44.011,1645.4,1643.6,13.67427634]
[1743963735801,44.32672044,1645.4,1643.8,4.25842]
[1743963735965,44.32672044,1645.4,1643.6,14.93320634]
[1743963735966,0.31572044,1645.4,1643.6,14.93320634]
[1743963736166,0.31572044,1645.4,1644.3,4.25691]
[1743963736417,0.31572044,1645.4,1643.7,3.0]
[1743963736418,0.94786154,1645.1,1644.1,13.67427634]
[1743963736563,0.94786154,1645.1,1644.2,3.55]
[1743963736766,10.29556093,1646.2,1644.1,10.67427634]
[1743963736983,1.04770859,1645.8,1643.1,16.57436634]
[1743963737164,1.04770859,1645.8,1642.9,4.26068]
[1743963737165,3.0,1644.9,1642.9,4.26068]
[1743963737388,3.0,1643.6,1641.9,1.6312]
[1743963737606,3.0,1643.4,1641.5,4.26434]
[1743963737825,43.947,1643.5,1641.2,1.6312]
[1743963738004,43.947,1643.5,1641.5,10.67427634]
[1743963738295,41.421829,1643.5,1641.5,10.67427634]
[1743963738493,4.25615,1644.7,1641.2,1.6312]
[1743963738494,43.914,1645.2,1642.7,4.26127]
[1743963738720,4.25557,1644.9,1642.7,0.589247]
[1743963738939,4.25557,1644.9,1641.8,4.26347]
[1743963738940,4.25924,1643.5,1641.8,1.6312]
[1743963739227,4.26146,1642.7,1640.6,4.26673]
[1743963739395,48.1756,1642.6,1640.5,12.30547634]
[1743963739594,4.26208,1642.4,1640.6,1.23054763]
[1743963739813,4.26259,1642.2,1640.6,1.23054763]
[1743963740013,4.26407,1641.7,1639.8,1.6312]
[1743963740322,0.10482173,1642.2,1640.0,10.67427634]
[1743963740505,3.0,1642.2,1640.0,10.67427634]
[1743963740707,43.914,1643.2,1641.4,4.26461]
[1743963740919,43.914,1643.5,1641.1,3.0]
[1743963741226,3.0,1642.6,1640.6,10.67427634]
[1743963741474,43.914,1642.5,1640.7,4.26621]
[1743963741613,4.26231,1642.3,1640.1,12.30547634]
[1743963741930,3.0,1641.7,1638.8,4.27118]
[1743963742227,9.98,1641.6,1639.6,4.26914]
[1743963742523,9.98,1642.1,1638.8,10.67427634]
[1743963742835,43.895,1642.7,1640.4,4.267]
[1743963742987,4.26179,1642.5,1639.9,1.6312]
[1743963743185,4.26179,1642.5,1638.9,1.16742763]
[1743963743186,4.26335,1641.9,1638.9,1.06742763]
[1743963743387,0.426335,1641.8,1639.7,4.26889]
[1743963743621,0.55,1641.5,1639.1,10.67427634]
[1743963743919,0.55,1641.2,1639.1,10.67427634]
[1743963744118,3.0,1640.8,1639.1,4.27046]
[1743963744323,0.55,1640.4,1638.9,1.06742763]
[1743963744525,43.896,1640.3,1638.6,4.27188]
[1743963744689,3.0,1640.2,1639.0,4.27068]
[1743963744884,3.0,1640.9,1638.8,4.27141]
[1743963745111,43.896,1641.7,1639.8,0.55]
[1743963745325,43.896,1641.7,1640.7,4.26645]
[1743963745623,43.896,1641.7,1640.1,0.55]
[1743963745624,43.896,1641.7,1640.2,3.0]
[1743963745795,43.896,1641.7,1640.0,0.55]
[1743963745997,43.896,1641.7,1639.9,1.6312]
[1743963746199,43.896,1641.7,1640.3,4.26728]
[1743963746387,43.896,1641.7,1640.4,4.267]
[1743963746594,43.896,1641.7,1639.9,1.6312]
[1743963746821,43.896,1641.7,1640.1,10.67427634]
[1743963747003,43.796,1641.7,1640.8,4.26602]
[1743963747189,43.896,1642.4,1641.2,4.26502]
[1743963747520,43.896,1642.7,1641.8,4.26359]
[1743963747700,43.891,1643.4,1641.9,4.689529]
[1743963747996,43.891,1643.4,1642.1,0.55]
[1743963748198,43.891,1643.4,1641.9,3.426359]
[1743963748409,43.891,1643.4,1641.4,3.0]
[1743963748588,43.891,1643.4,1642.5,4.26162]
[1743963748787,43.891,1643.4,1642.3,4.26215]
[1743963748985,43.891,1644.1,1643.3,4.25955]
[1743963749225,43.891,1644.7,1643.3,8.51911]
[1743963749528,43.891,1645.4,1643.8,4.25819]
[1743963749727,0.9487686,1645.5,1643.8,10.67427634]
[1743963750025,4.25453,1645.4,1643.3,10.67427634]
[1743963750227,0.425453,1645.3,1643.4,8.32672763]
[1743963750417,4.25693,1644.4,1642.8,10.67427634]
[1743963750735,43.891,1644.3,1642.7,0.55]
[1743963750903,43.858,1644.2,1642.6,1.6312]
[1743963751242,43.858,1644.2,1642.7,0.55]
[1743963751437,43.858,1644.2,1643.0,4.26025]
[1743963751644,43.858,1644.2,1643.4,4.25928]
[1743963751793,43.858,1645.0,1642.8,10.67427634]
[1743963751994,43.858,1645.0,1643.4,4.25925]
[1743963752193,9.98,1644.9,1642.8,10.67427634]
[1743963752410,3.55,1644.7,1642.4,4.26195]
[1743963752623,0.355,1644.6,1643.1,4.26002]
[1743963752898,43.858,1645.0,1643.1,0.55]
[1743963753222,43.858,1645.0,1643.9,4.25813]
[1743963753531,43.858,1645.0,1643.7,4.25853]
[1743963753730,43.842,1646.0,1644.4,3.0]
[1743963753892,4.25109,1646.7,1644.4,3.0]
[1743963753893,43.842,1646.9,1645.3,4.25447]
[1743963754119,0.3153905,1646.1,1644.8,4.569]
[1743963754363,0.3153905,1646.1,1644.9,7.25556]
[1743963754566,43.842,1646.9,1645.3,4.25449]
[1743963754730,43.842,1646.9,1644.9,3.0]
[1743963754916,0.31548044,1647.4,1645.2,10.67427634]
[1743963755121,44.29846004,1647.4,1645.5,3.0]
[1743963755316,43.842,1647.4,1645.8,7.25325]
[1743963755516,43.842,1648.1,1646.5,3.0]
[1743963755726,43.842,1648.1,1646.2,14.92643634]
[1743963755727,43.842,1648.2,1646.3,3.0]
[1743963756028,43.842,1648.2,1647.1,4.24968]
[1743963756227,43.842,1648.2,1646.2,10.67427634]
[1743963756434,43.842,1648.2,1646.3,7.25184]
[1743963756660,43.842,1648.2,1646.3,3.0]
[1743963756854,43.842,1648.2,1646.3,3.55]
[1743963757086,43.842,1648.2,1646.4,0.355]
[1743963757268,48.08912,1648.2,1645.9,1.569]
[1743963757582,0.55,1647.4,1645.3,2.60992763]
[1743963757751,0.55,1647.2,1645.3,2.60992763]
[1743963757939,3.0,1647.0,1645.3,2.60992763]
[1743963758346,3.0,1647.0,1645.5,4.25381]
[1743963758565,43.8,1647.1,1645.3,6.86434763]
[1743963758865,48.04797,1647.9,1646.1,4.25232]
[1743963759053,43.8,1647.9,1645.9,0.55]
[1743963759267,43.8,1647.9,1646.0,4.25263]
[1743963759452,43.8,1647.9,1645.3,6.86429763]
[1743963759453,4.25011,1647.1,1645.3,6.86429763]
[1743963759644,17.77925,1647.4,1645.3,2.60992763]
[1743963759840,4.24989,1647.1,1644.7,12.21677634]
[1743963760188,0.55,1647.0,1645.0,4.25521]
[1743963760370,3.55,1646.3,1644.7,12.21677634]
[1743963760573,0.55,1645.8,1643.9,4.25816]
[1743963760757,43.776,1646.2,1644.4,4.25669]
[1743963760964,0.55,1646.0,1644.6,4.25634]
[1743963761157,43.776,1647.1,1645.0,4.25531]
[1743963761482,53.756,1647.3,1645.0,3.0]
[1743963761653,53.756,1647.3,1644.9,11.22427634]
[1743963761654,43.776,1647.2,1644.9,10.67427634]
[1743963761855,4.25016,1647.0,1645.0,3.0]
[1743963762054,43.776,1647.2,1645.2,4.2548]
[1743963762254,43.776,1647.2,1645.4,4.25425]
[1743963762488,43.776,1647.2,1645.1,7.25506]
[1743963762649,43.776,1647.2,1645.6,4.25359]
[1743963762850,43.776,1647.2,1645.7,4.25347]
[1743963763144,43.776,1647.2,1645.8,4.967847]
[1743963763345,43.776,1647.2,1646.0,0.55]
[1743963763590,43.776,1647.2,1645.8,1.5425]
[1743963764100,43.776,1647.2,1645.9,4.25299]
[1743963764403,3.0,1647.1,1645.6,3.0]
[1743963764694,43.776,1647.2,1646.4,4.25152]
[1743963764882,43.776,1647.2,1646.0,4.25273]
[1743963765085,43.767,1647.9,1647.0,4.24994]
[1743963765285,44.08224989,1649.2,1647.0,13.67427634]
[1743963765487,48.01168,1649.2,1647.4,4.24911]
[1743963765695,43.767,1649.2,1647.7,4.24834]
[1743963765873,43.767,1649.2,1647.7,4.24817]
[1743963766066,43.767,1649.2,1647.2,4.24952]
[1743963766266,9.98,1649.1,1647.2,4.24938]
[1743963766610,43.753,1649.1,1647.7,4.24818]
[1743963766809,4.24506,1649.0,1647.0,4.5425]
[1743963766969,5.38695689,1649.0,1647.0,1.5425]
[1743963767170,1.14173689,1649.0,1647.0,2.0925]
[1743963767406,43.753,1649.1,1647.1,4.24989]
[1743963767609,43.753,1649.1,1646.4,4.25161]
[1743963767610,4.24727,1648.2,1646.4,5.79414]
[1743963767915,0.55,1647.9,1646.4,1.5425]
[1743963768080,3.0,1647.8,1646.2,4.25206]
[1743963768282,14.22783,1647.9,1645.5,5.32132763]
[1743963768598,14.22783,1647.9,1645.3,1.5425]
[1743963768599,7.25067,1646.8,1645.3,1.5425]
[1743963768791,43.739,1646.7,1645.6,4.25364]
[1743963768971,3.0,1647.3,1646.0,4.25249]
[1743963769175,43.739,1648.1,1645.3,1.5425]
[1743963769373,11.12173689,1648.0,1645.3,1.5425]
[1743963769594,3.0,1647.7,1645.0,1.5425]
[1743963769802,3.0,1647.7,1644.5,1.5425]
[1743963769803,4.24937,1647.3,1644.5,1.5425]
[1743963770104,20.76494937,1647.2,1644.0,1.5425]
[1743963770305,0.55,1646.8,1644.7,4.25607]
[1743963770611,0.55,1646.5,1644.9,4.2554]
[1743963770794,4.25193,1646.4,1644.3,10.67427634]
[1743963771109,3.0,1646.6,1645.5,4.25383]
[1743963771309,2.95,1646.6,1644.6,4.25635]
[1743963771477,43.739,1646.7,1644.7,4.25609]
[1743963771684,0.55,1646.6,1645.0,7.25509]
[1743963771984,0.55,1646.5,1644.9,4.25544]
[1743963772209,14.78145,1646.5,1644.4,1.06742763]
[1743963772518,0.55,1645.9,1644.4,4.2567]
[1743963772693,44.18621514,1646.7,1644.1,4.25762]
[1743963773026,4.80268,1646.1,1644.4,4.25663]
[1743963773183,9.98,1646.6,1644.0,5.88204]
[1743963773184,0.55,1645.6,1644.1,4.25749]
[1743963773503,3.0,1645.4,1644.1,4.25758]
[1743963773705,3.0,1645.4,1644.0,1.6243]
[1743963773920,3.55,1646.1,1644.1,4.25764]
[1743963774104,3.55,1646.1,1644.0,1.6243]
[1743963774105,13.53,1646.1,1644.0,1.6243]
[1743963774304,0.55,1645.9,1644.3,4.25692]
[1743963774486,0.55,1645.7,1643.6,4.25892]
[1743963774691,3.0,1646.0,1644.7,4.25592]
[1743963774917,43.742,1646.2,1645.1,4.25483]
[1743963775132,43.742,1646.2,1645.2,0.425483]
[1743963775442,3.0,1646.1,1644.6,3.0]
[1743963775597,7.2525,1646.1,1644.0,10.67427634]
[1743963775801,0.55,1646.0,1644.0,10.67427634]
[1743963776001,4.25352,1645.7,1644.2,4.25724]
[1743963776202,0.55,1645.7,1644.3,0.425724]
[1743963776617,3.55,1645.7,1644.2,4.25725]
[1743963776825,43.742,1646.2,1644.2,0.55]
[1743963776991,3.0,1646.1,1644.4,4.25671]
[1743963777192,3.0,1646.1,1644.5,0.425671]
[1743963777424,3.0,1646.1,1644.7,4.25596]
[1743963777823,3.0,1646.1,1644.3,7.25709]
[1743963778032,3.0,1646.1,1644.6,4.25618]
[1743963778199,3.0,1646.1,1644.5,4.25658]
[1743963778528,0.41920607,1646.0,1645.5,4.2539]
[1743963778832,0.41920607,1646.0,1645.0,7.25507]
[1743963778833,43.756,1646.9,1645.6,0.42539]
[1743963778992,43.756,1647.1,1645.7,4.2535]
[1743963779214,43.756,1647.4,1646.0,4.2527]
[1743963779410,0.42082663,1647.3,1645.6,3.0]
[1743963779625,4.24981,1647.2,1645.7,4.25333]
[1743963779825,0.42082663,1647.3,1645.9,4.25296]
[1743963780013,4.67089663,1647.1,1645.8,0.425333]
[1743963780214,0.42082663,1647.1,1645.5,3.55]
[1743963780412,43.756,1647.4,1645.1,12.28657634]
[1743963780413,0.42082663,1647.0,1645.1,12.28657634]
[1743963780648,3.0,1646.1,1644.6,12.28657634]
[1743963780848,7.25288,1646.0,1644.1,60.30019634]
[1743963781048,43.749,1646.1,1644.1,60.30019634]
[1743963781049,4.25414,1645.5,1644.2,5.90423334]
[1743963781250,0.42111778,1645.4,1643.6,12.28657634]
[1743963781453,4.25573,1644.9,1643.4,4.25921]
[1743963781618,3.55,1644.7,1643.2,4.25997]
[1743963781818,3.55,1644.7,1643.3,0.425997]
[1743963782149,43.749,1645.8,1644.5,4.25661]
[1743963782349,43.749,1645.8,1643.4,4.25933]
[1743963782350,3.0,1645.7,1644.7,4.25585]
[1743963782551,43.749,1645.8,1644.4,3.0]
[1743963782737,43.749,1646.5,1645.2,4.25478]
[1743963782917,12.98,1646.4,1644.1,1.6123]
[1743963783112,0.6073,1645.9,1644.5,4.25642]
[1743963783339,0.55,1645.6,1643.6,10.67427634]
[1743963783539,4.25533,1645.0,1643.5,1.5974]
[1743963783727,4.80616,1644.7,1643.2,4.25997]
[1743963783929,4.25736,1644.3,1642.8,4.2609]
[1743963784131,3.0,1643.8,1642.0,1.5974]
[1743963784454,0.71620389,1643.8,1642.0,1.5974]
[1743963784753,3.0,1644.1,1641.7,4.26369]
[1743963784754,0.56057878,1643.7,1641.7,4.26369]
[1743963785059,0.56057878,1643.7,1642.6,4.26153]
[1743963785265,0.56057878,1643.7,1642.7,4.26125]
[1743963785417,0.56057878,1643.7,1642.8,0.426125]
[1743963785617,0.56057878,1643.7,1643.0,4.26031]
[1743963785863,0.56057878,1643.7,1643.0,4.26037]
[1743963786049,0.55,1644.0,1642.8,4.26094]
[1743963786218,0.55,1643.8,1642.3,4.26218]
[1743963786425,0.55,1643.8,1641.5,4.26421]
[1743963786426,0.55,1643.5,1641.8,4.2635]
[1743963786668,3.0,1643.7,1641.6,1.5974]
[1743963786871,0.55,1644.0,1642.3,4.26214]
[1743963787058,4.2581,1644.0,1642.4,4.26189]
[1743963787253,0.55,1643.7,1641.7,4.26373]
[1743963787584,0.55,1643.1,1641.1,1.5974]
[1743963787794,3.0,1642.9,1640.6,1.5974]
[1743963788086,0.06114233,1642.8,1641.6,4.26412]
[1743963788267,0.55,1642.6,1641.0,1.5974]
[1743963788587,0.06114233,1642.5,1641.2,4.26517]
[1743963788885,0.06114233,1642.8,1641.4,4.2646]
[1743963789054,43.768,1643.9,1641.6,0.55]
[1743963789242,0.06114233,1643.8,1642.1,3.0]
[1743963789440,0.06114233,1643.8,1642.0,4.26289]
[1743963789640,0.06114233,1643.8,1642.1,4.2628]
[1743963789943,3.0,1643.6,1641.6,4.905162]
[1743963790173,0.55,1643.3,1641.7,0.060896]
[1743963790393,0.06114233,1643.2,1641.9,4.26315]
[1743963790582,0.55,1643.1,1642.1,4.26282]
[1743963790885,0.06114233,1643.2,1642.1,4.26269]
[1743963791066,0.06114233,1643.0,1642.2,4.32321041]
[1743963791249,0.5557211,1643.5,1642.3,4.26231]
[1743963791437,0.06114233,1643.4,1641.7,3.0]
[1743963791676,0.06114233,1643.8,1642.4,4.26183]
[1743963791874,0.55,1643.7,1642.5,0.06086922]
[1743963792120,0.06114233,1643.6,1642.8,4.26085]
[1743963792275,0.06114233,1643.8,1642.3,3.0]
[1743963792616,0.06114233,1643.8,1642.5,4.26179]
[1743963792814,43.802,1644.6,1643.0,4.26046]
[1743963793015,0.06114233,1644.5,1643.2,4.25998]
[1743963793199,0.06114233,1644.9,1643.7,4.25853]
[1743963793402,0.06114233,1644.8,1643.8,4.25827]
[1743963793587,0.06114233,1645.2,1644.0,4.25767]
[1743963793914,0.06114233,1645.2,1644.0,0.425767]
[1743963794084,0.06114233,1645.6,1644.1,0.0608074]
[1743963794277,43.802,1645.7,1645.0,4.25526]
[1743963794475,0.06114233,1645.6,1644.0,10.67427634]
[1743963794714,0.06114233,1645.6,1643.9,4.25803]
[1743963794915,0.06114233,1645.6,1644.0,4.25775]
[1743963795082,3.0,1645.5,1643.8,4.25829]
[1743963795279,0.06114233,1645.4,1643.3,1.6647]
[1743963795603,0.55,1645.1,1643.6,4.25879]
[1743963795790,0.55,1644.9,1642.7,1.6647]
[1743963795985,0.06114233,1644.8,1644.1,4.25746]
[1743963796187,0.06114233,1645.4,1644.4,4.25667]
[1743963796388,0.06114233,1645.4,1644.3,4.25706]
[1743963796927,0.06114233,1645.6,1644.3,4.25688]
[1743963797088,0.06114233,1645.6,1644.4,0.425688]
[1743963797423,7.31502233,1645.6,1644.0,4.2577]
[1743963797717,3.06114233,1645.6,1644.1,4.25752]
[1743963797949,0.55,1645.0,1643.1,12.27437634]
[1743963798219,0.55,1645.0,1642.6,0.426179]
[1743963798220,0.55,1644.7,1643.0,4.26049]
[1743963798514,0.55,1644.4,1642.6,16.96205534]
[1743963798716,0.55,1644.2,1642.7,4.26112]
[1743963798934,0.06114233,1644.1,1642.9,4.26063]
[1743963799080,0.06114233,1644.3,1643.1,4.26008]
[1743963799294,0.06114233,1644.3,1643.2,0.426008]
[1743963799527,0.06114233,1644.3,1642.6,6.287719]
[1743963799702,0.06114233,1644.3,1642.8,4.26101]
[1743963800020,43.79,1645.4,1644.0,4.25773]
[1743963800220,0.48048201,1645.3,1644.3,4.25691]
[1743963800425,0.48048201,1645.3,1643.9,4.25802]
[1743963800600,0.48048201,1645.3,1643.5,3.0]
[1743963800783,0.06114233,1645.3,1643.4,4.25934]
[1743963800986,3.55,1644.8,1643.3,4.25967]
[1743963801218,0.06114233,1644.7,1643.4,0.06082599]
[1743963801420,0.06114233,1644.7,1643.1,4.26023]
[1743963801421,0.06114233,1645.3,1643.3,0.55]